[Event "*** Titled Tuesday Blitz"]
[Site "Chess.com"]
[Date "2021.03.30"]
[Round "1"]
[White "dachessmandan"]
[Black "niki_2003"]
[Result "1-0"]
[WhiteElo "2497"]
[BlackElo "2048"]
[TimeControl "180+1"]
[EndTime "10:06:24 PDT"]
[Termination "dachessmandan won by checkmate"]

1. e4 {[%clk 0:02:58.3]} 1... c6 {[%clk 0:02:59.3]} 2. d4 {[%clk 0:02:56.6]}
2... d5 {[%clk 0:02:57.3]} 3. exd5 {[%clk 0:02:56.4]} 3... cxd5 {[%clk
0:02:57.3]} 4. Bd3 {[%clk 0:02:55.9]} 4... Nf6 {[%clk 0:02:56.9]} 5. c3 {[%clk
0:02:55.1]} 5... Nc6 {[%clk 0:02:56.4]} 6. Bf4 {[%clk 0:02:54.6]} 6... e6 {[%clk
0:02:54.4]} 7. Nf3 {[%clk 0:02:53.4]} 7... Bd6 {[%clk 0:02:54.4]} 8. Bg3 {[%clk
0:02:47.3]} 8... O-O {[%clk 0:02:53.1]} 9. O-O {[%clk 0:02:46.4]} 9... Re8
{[%clk 0:02:50.2]} 10. Re1 {[%clk 0:02:46.1]} 10... Qc7 {[%clk 0:02:49.6]} 11.
Qe2 {[%clk 0:02:42.3]} 11... Nd7 {[%clk 0:02:47.3]} 12. Bxh7+ {[%clk 0:02:13.2]}
12... Kxh7 {[%clk 0:02:42.8]} 13. Ng5+ {[%clk 0:02:12.8]} 13... Kg8 {[%clk
0:02:10.2]} 14. Qh5 {[%clk 0:01:56.7]} 14... Nf6 {[%clk 0:02:08.9]} 15. Bxd6
{[%clk 0:01:56.2]} 15... Nxh5 {[%clk 0:01:57.2]} 16. Bxc7 {[%clk 0:01:55.7]}
16... f6 {[%clk 0:01:55.6]} 17. Nf3 {[%clk 0:01:51.4]} 17... Bd7 {[%clk
0:01:52.1]} 18. g4 {[%clk 0:01:49.2]} 18... Rac8 {[%clk 0:01:50.3]} 19. Bd6
{[%clk 0:01:48.8]} 19... e5 {[%clk 0:00:45.5]} 20. gxh5 {[%clk 0:01:43.1]} 20...
Bg4 {[%clk 0:00:42.2]} 21. Nbd2 {[%clk 0:01:38.9]} 21... exd4 {[%clk 0:00:40.5]}
22. Rxe8+ {[%clk 0:01:20.5]} 22... Rxe8 {[%clk 0:00:40.3]} 23. Nxd4 {[%clk
0:01:20.6]} 23... Nxd4 {[%clk 0:00:36.8]} 24. cxd4 {[%clk 0:01:21.5]} 24... Bxh5
{[%clk 0:00:36.5]} 25. Rc1 {[%clk 0:01:12.6]} 25... Re2 {[%clk 0:00:34.2]} 26.
Bf4 {[%clk 0:01:11.5]} 26... g5 {[%clk 0:00:25.7]} 27. Be3 {[%clk 0:01:11]}
27... Kg7 {[%clk 0:00:24.1]} 28. Kf1 {[%clk 0:01:10.7]} 28... Kg6 {[%clk
0:00:22.5]} 29. Re1 {[%clk 0:01:06.4]} 29... Rxe1+ {[%clk 0:00:19.8]} 30. Kxe1
{[%clk 0:01:07.3]} 30... Kf5 {[%clk 0:00:20]} 31. Nb3 {[%clk 0:00:56.8]} 31...
Kg4 {[%clk 0:00:20.1]} 32. Kf1 {[%clk 0:00:47.9]} 32... f5 {[%clk 0:00:20.1]}
33. Kg2 {[%clk 0:00:47.5]} 33... f4 {[%clk 0:00:20.2]} 34. f3+ {[%clk 0:00:48]}
34... Kh4 {[%clk 0:00:19.2]} 35. Bf2# {[%clk 0:00:45.9]} 1-0

[Event "*** Titled Tuesday Blitz"]
[Site "Chess.com"]
[Date "2021.03.30"]
[Round "1"]
[White "Escanor89"]
[Black "yuki_chess123"]
[Result "1-0"]
[WhiteElo "2549"]
[BlackElo "2240"]
[TimeControl "180+1"]
[EndTime "10:06:25 PDT"]
[Termination "Escanor89 won by checkmate"]

1. c4 {[%clk 0:03:00.3]} 1... e5 {[%clk 0:02:58.9]} 2. Nc3 {[%clk 0:03:00.4]}
2... Bb4 {[%clk 0:02:59.1]} 3. g3 {[%clk 0:02:59.7]} 3... Bxc3 {[%clk
0:02:58.5]} 4. bxc3 {[%clk 0:02:59.4]} 4... Nf6 {[%clk 0:02:58.7]} 5. Bg2 {[%clk
0:02:59.6]} 5... O-O {[%clk 0:02:58.4]} 6. e4 {[%clk 0:02:59.6]} 6... Na6 {[%clk
0:02:52.1]} 7. Ne2 {[%clk 0:02:59.1]} 7... Nc5 {[%clk 0:02:51.4]} 8. d3 {[%clk
0:02:58.1]} 8... d6 {[%clk 0:02:45.4]} 9. O-O {[%clk 0:02:58]} 9... b6 {[%clk
0:02:35]} 10. h3 {[%clk 0:02:52.8]} 10... h6 {[%clk 0:02:34.7]} 11. Be3 {[%clk
0:02:52.4]} 11... Re8 {[%clk 0:02:34]} 12. Qd2 {[%clk 0:02:52]} 12... Be6 {[%clk
0:02:23.7]} 13. f4 {[%clk 0:02:51.1]} 13... Rc8 {[%clk 0:02:02.1]} 14. Kh2
{[%clk 0:02:43.9]} 14... exf4 {[%clk 0:01:49.6]} 15. Nxf4 {[%clk 0:02:41.6]}
15... Nfd7 {[%clk 0:01:40.8]} 16. d4 {[%clk 0:02:28.1]} 16... Na4 {[%clk
0:01:39.6]} 17. d5 {[%clk 0:02:27.6]} 17... Bg4 {[%clk 0:01:32.2]} 18. hxg4
{[%clk 0:02:23.8]} 18... Ne5 {[%clk 0:01:32.4]} 19. Bd4 {[%clk 0:02:11.1]} 19...
Nxc4 {[%clk 0:01:26.1]} 20. Qe2 {[%clk 0:02:05.6]} 20... b5 {[%clk 0:01:21.8]}
21. Nh5 {[%clk 0:01:48.3]} 21... Ne5 {[%clk 0:01:20.4]} 22. Kg1 {[%clk
0:01:44.5]} 22... a6 {[%clk 0:01:16.6]} 23. Rf4 {[%clk 0:01:40.1]} 23... c5
{[%clk 0:01:11.7]} 24. dxc6 {[%clk 0:01:39.2]} 24... Rxc6 {[%clk 0:01:12.1]} 25.
Qd2 {[%clk 0:01:24]} 25... Qc8 {[%clk 0:01:09.4]} 26. Raf1 {[%clk 0:01:17.2]}
26... Re7 {[%clk 0:00:58.2]} 27. Nxg7 {[%clk 0:00:54.7]} 27... Kxg7 {[%clk
0:00:58]} 28. Rf6 {[%clk 0:00:54.2]} 28... Rxc3 {[%clk 0:00:41.5]} 29. Qxh6+
{[%clk 0:00:52.3]} 29... Kg8 {[%clk 0:00:41.4]} 30. R6f5 {[%clk 0:00:40.5]}
30... Qe6 {[%clk 0:00:26.3]} 31. Rg5+ {[%clk 0:00:39.1]} 31... Qg6 {[%clk
0:00:21]} 32. Rxg6+ {[%clk 0:00:37.8]} 32... fxg6 {[%clk 0:00:20.4]} 33. Rf8#
{[%clk 0:00:37.6]} 1-0

[Event "*** Titled Tuesday Blitz"]
[Site "Chess.com"]
[Date "2021.03.30"]
[Round "1"]
[White "mbojan"]
[Black "chessdiamant"]
[Result "1-0"]
[WhiteElo "2665"]
[BlackElo "2346"]
[TimeControl "180+1"]
[EndTime "10:06:26 PDT"]
[Termination "mbojan won by resignation"]

1. g3 {[%clk 0:02:58.9]} 1... c5 {[%clk 0:02:58.1]} 2. Bg2 {[%clk 0:02:59.2]}
2... Nc6 {[%clk 0:02:57.6]} 3. c4 {[%clk 0:02:59.7]} 3... g6 {[%clk 0:02:57.4]}
4. Nc3 {[%clk 0:02:57.6]} 4... Bg7 {[%clk 0:02:57.1]} 5. e3 {[%clk 0:02:57.8]}
5... e5 {[%clk 0:02:55.8]} 6. Nge2 {[%clk 0:02:55.9]} 6... Nge7 {[%clk
0:02:55.4]} 7. d3 {[%clk 0:02:54.4]} 7... d6 {[%clk 0:02:55.2]} 8. O-O {[%clk
0:02:54.4]} 8... O-O {[%clk 0:02:55.1]} 9. a3 {[%clk 0:02:54.8]} 9... a5 {[%clk
0:02:54.6]} 10. Rb1 {[%clk 0:02:46.5]} 10... Be6 {[%clk 0:02:53.1]} 11. Nd5
{[%clk 0:02:47]} 11... f5 {[%clk 0:02:50.2]} 12. Bd2 {[%clk 0:02:37.6]} 12...
Rb8 {[%clk 0:02:47.1]} 13. b4 {[%clk 0:02:36.7]} 13... axb4 {[%clk 0:02:44]} 14.
axb4 {[%clk 0:02:36.5]} 14... cxb4 {[%clk 0:02:38]} 15. Nxe7+ {[%clk 0:02:25.2]}
15... Qxe7 {[%clk 0:02:35]} 16. Bxb4 {[%clk 0:02:24.6]} 16... Nxb4 {[%clk
0:02:34.9]} 17. Rxb4 {[%clk 0:02:24.1]} 17... d5 {[%clk 0:02:34.4]} 18. Qb3
{[%clk 0:02:13.2]} 18... dxc4 {[%clk 0:02:26.3]} 19. dxc4 {[%clk 0:02:14.1]}
19... g5 {[%clk 0:02:02]} 20. Bd5 {[%clk 0:02:12.9]} 20... f4 {[%clk 0:02:00.1]}
21. Bxe6+ {[%clk 0:01:38.9]} 21... Qxe6 {[%clk 0:02:01]} 22. c5 {[%clk
0:01:39.4]} 22... Qxb3 {[%clk 0:01:55.8]} 23. Rxb3 {[%clk 0:01:40.3]} 23... Rfc8
{[%clk 0:01:30.9]} 24. Nc3 {[%clk 0:01:25.8]} 24... Rxc5 {[%clk 0:01:11.6]} 25.
Ne4 {[%clk 0:01:25.4]} 25... Rc4 {[%clk 0:01:00]} 26. Nxg5 {[%clk 0:01:25.7]}
26... Bh6 {[%clk 0:00:55.5]} 27. Nf3 {[%clk 0:01:24.2]} 27... e4 {[%clk
0:00:47.2]} 28. Ne5 {[%clk 0:01:20.4]} 28... Rc5 {[%clk 0:00:36.7]} 29. Nd7
{[%clk 0:01:20.3]} 29... Rbc8 {[%clk 0:00:25.6]} 30. Nxc5 {[%clk 0:01:19.6]}
30... Rxc5 {[%clk 0:00:26.5]} 31. exf4 {[%clk 0:01:18.8]} 31... b5 {[%clk
0:00:20.2]} 32. Rfb1 {[%clk 0:01:18.7]} 32... Bg7 {[%clk 0:00:16.8]} 33. Rxb5
{[%clk 0:01:18.5]} 33... Rc2 {[%clk 0:00:16.7]} 34. R5b4 {[%clk 0:01:18.1]}
34... Re2 {[%clk 0:00:14.1]} 35. Kf1 {[%clk 0:01:18.1]} 35... Ra2 {[%clk
0:00:13.9]} 36. Rxe4 {[%clk 0:01:18.3]} 36... h6 {[%clk 0:00:14.8]} 37. Re2
{[%clk 0:01:18.6]} 37... Ra3 {[%clk 0:00:14.3]} 38. Kg2 {[%clk 0:01:19.1]} 38...
h5 {[%clk 0:00:13.7]} 39. h4 {[%clk 0:01:18.6]} 39... Bd4 {[%clk 0:00:13.2]} 40.
Rd1 {[%clk 0:01:18.2]} 40... Ra4 {[%clk 0:00:12.9]} 41. Re4 {[%clk 0:01:17.9]}
1-0

[Event "*** Titled Tuesday Blitz"]
[Site "Chess.com"]
[Date "2021.03.30"]
[Round "1"]
[White "Arvids_Andrejevs"]
[Black "Murad_Ibrahimli"]
[Result "0-1"]
[WhiteElo "2430"]
[BlackElo "2813"]
[TimeControl "180+1"]
[EndTime "10:06:28 PDT"]
[Termination "Murad_Ibrahimli won by resignation"]

1. e4 {[%clk 0:02:59.6]} 1... c5 {[%clk 0:02:59.1]} 2. c3 {[%clk 0:02:59.6]}
2... d5 {[%clk 0:02:56.9]} 3. exd5 {[%clk 0:02:56.7]} 3... Qxd5 {[%clk
0:02:57.8]} 4. d4 {[%clk 0:02:57]} 4... g6 {[%clk 0:02:57.3]} 5. Nf3 {[%clk
0:02:56.9]} 5... Bg7 {[%clk 0:02:57.6]} 6. Be3 {[%clk 0:02:57.1]} 6... cxd4
{[%clk 0:02:57.3]} 7. cxd4 {[%clk 0:02:57.9]} 7... Nf6 {[%clk 0:02:57.4]} 8. h3
{[%clk 0:02:58.1]} 8... O-O {[%clk 0:02:56.8]} 9. Nc3 {[%clk 0:02:57]} 9... Qd6
{[%clk 0:02:54.4]} 10. Bc4 {[%clk 0:02:50.9]} 10... Na6 {[%clk 0:02:47.3]} 11.
O-O {[%clk 0:02:45.8]} 11... Nc7 {[%clk 0:02:47.3]} 12. Re1 {[%clk 0:02:43]}
12... Be6 {[%clk 0:02:40.8]} 13. Bxe6 {[%clk 0:02:40]} 13... Nxe6 {[%clk
0:02:41.7]} 14. Rc1 {[%clk 0:02:34]} 14... a6 {[%clk 0:02:36.4]} 15. d5 {[%clk
0:02:28]} 15... Nc7 {[%clk 0:02:34.8]} 16. Qb3 {[%clk 0:02:08.9]} 16... Ncxd5
{[%clk 0:02:27.3]} 17. Rcd1 {[%clk 0:02:04.6]} 17... e6 {[%clk 0:02:15.5]} 18.
Na4 {[%clk 0:01:34.1]} 18... b5 {[%clk 0:02:01.5]} 19. Nb6 {[%clk 0:01:24.6]}
19... Rab8 {[%clk 0:02:00.2]} 20. Nxd5 {[%clk 0:01:24.1]} 20... Nxd5 {[%clk
0:02:01.1]} 21. Bd4 {[%clk 0:01:23]} 21... Bxd4 {[%clk 0:01:59.1]} 22. Rxd4
{[%clk 0:01:21]} 22... Rfc8 {[%clk 0:01:58.4]} 23. Qd3 {[%clk 0:01:13.4]} 23...
Rc4 {[%clk 0:01:49.7]} 24. Rxc4 {[%clk 0:01:09.1]} 24... bxc4 {[%clk 0:01:50.6]}
25. Qxc4 {[%clk 0:01:09.5]} 25... Rxb2 {[%clk 0:01:50.1]} 26. Rd1 {[%clk
0:01:06.9]} 26... Qb6 {[%clk 0:01:49.9]} 27. Nd4 {[%clk 0:00:58.7]} 27... Kg7
{[%clk 0:01:41.3]} 28. a4 {[%clk 0:00:55.4]} 28... Rb4 {[%clk 0:01:26.4]} 29.
Qd3 {[%clk 0:00:50.4]} 29... Rxa4 {[%clk 0:01:22.6]} 30. Qe4 {[%clk 0:00:49]}
30... Rb4 {[%clk 0:01:12.3]} 31. Qe5+ {[%clk 0:00:48.5]} 31... Kg8 {[%clk
0:01:12.8]} 32. h4 {[%clk 0:00:30.1]} 32... Rb1 {[%clk 0:01:11.7]} 33. Rxb1
{[%clk 0:00:20.4]} 33... Qxb1+ {[%clk 0:01:12.6]} 34. Kh2 {[%clk 0:00:20.7]}
34... Qb6 {[%clk 0:01:13.2]} 35. h5 {[%clk 0:00:16.2]} 35... Qc7 {[%clk
0:01:12.9]} 36. Qxc7 {[%clk 0:00:14.9]} 36... Nxc7 {[%clk 0:01:13.8]} 37. hxg6
{[%clk 0:00:15.4]} 37... hxg6 {[%clk 0:01:14.4]} 38. Nc6 {[%clk 0:00:15.7]}
38... Kf8 {[%clk 0:01:13]} 39. Kg3 {[%clk 0:00:16]} 39... Ke8 {[%clk 0:01:12.8]}
40. Kf4 {[%clk 0:00:16.2]} 40... Kd7 {[%clk 0:01:12.5]} 41. Nb8+ {[%clk
0:00:16.5]} 41... Ke7 {[%clk 0:01:13.1]} 42. Ke5 {[%clk 0:00:15.5]} 42... f6+
{[%clk 0:01:13.2]} 43. Kf4 {[%clk 0:00:15.8]} 43... Kd6 {[%clk 0:01:13.8]} 44.
g4 {[%clk 0:00:15.2]} 44... g5+ {[%clk 0:01:13.6]} 45. Ke4 {[%clk 0:00:15.2]}
45... a5 {[%clk 0:01:14]} 0-1

[Event "*** Titled Tuesday Blitz"]
[Site "Chess.com"]
[Date "2021.03.30"]
[Round "1"]
[White "Raud100"]
[Black "abykhovsky"]
[Result "0-1"]
[WhiteElo "2385"]
[BlackElo "2715"]
[TimeControl "180+1"]
[EndTime "10:06:29 PDT"]
[Termination "abykhovsky won on time"]

1. d4 {[%clk 0:03:00.5]} 1... Nf6 {[%clk 0:02:59.3]} 2. c4 {[%clk 0:03:00]} 2...
c5 {[%clk 0:02:59.5]} 3. d5 {[%clk 0:02:58.8]} 3... b5 {[%clk 0:03:00]} 4. f3
{[%clk 0:02:59]} 4... b4 {[%clk 0:02:53.6]} 5. e4 {[%clk 0:02:59.9]} 5... d6
{[%clk 0:02:54.2]} 6. a4 {[%clk 0:02:57.8]} 6... g6 {[%clk 0:02:52.4]} 7. b3
{[%clk 0:02:57.5]} 7... Bg7 {[%clk 0:02:52.8]} 8. Bb2 {[%clk 0:02:57.7]} 8...
O-O {[%clk 0:02:53.4]} 9. Qc2 {[%clk 0:02:53]} 9... e6 {[%clk 0:02:35.1]} 10.
Nd2 {[%clk 0:02:46.1]} 10... Re8 {[%clk 0:02:32.4]} 11. O-O-O {[%clk 0:02:42]}
11... Nbd7 {[%clk 0:02:25.3]} 12. Bd3 {[%clk 0:02:37.7]} 12... Ne5 {[%clk
0:02:17.9]} 13. Ne2 {[%clk 0:02:33.6]} 13... a5 {[%clk 0:02:13.8]} 14. Rhe1
{[%clk 0:02:10.7]} 14... exd5 {[%clk 0:02:01.6]} 15. cxd5 {[%clk 0:02:08.4]}
15... Nfd7 {[%clk 0:01:54.8]} 16. Bb5 {[%clk 0:01:59]} 16... Ba6 {[%clk
0:01:52.4]} 17. Bxa6 {[%clk 0:01:25.4]} 17... Rxa6 {[%clk 0:01:51.2]} 18. Kb1
{[%clk 0:01:21]} 18... Nb6 {[%clk 0:01:45.9]} 19. Ng3 {[%clk 0:01:04.5]} 19...
Ra7 {[%clk 0:01:37.3]} 20. Ngf1 {[%clk 0:00:58.2]} 20... c4 {[%clk 0:01:30.9]}
21. Nxc4 {[%clk 0:00:54.6]} 21... Nexc4 {[%clk 0:01:30.3]} 22. bxc4 {[%clk
0:00:55.5]} 22... Bxb2 {[%clk 0:01:30.2]} 23. Kxb2 {[%clk 0:00:54]} 23... Qd7
{[%clk 0:01:30.2]} 24. Ra1 {[%clk 0:00:50.6]} 24... b3 {[%clk 0:01:04.7]} 25.
Qxb3 {[%clk 0:00:38.8]} 25... Rb7 {[%clk 0:01:05.1]} 26. Ka3 {[%clk 0:00:20.3]}
26... Nxd5 {[%clk 0:01:01.2]} 27. Qd1 {[%clk 0:00:19.9]} 27... Nb4 {[%clk
0:00:48.1]} 28. Ne3 {[%clk 0:00:17.2]} 28... Reb8 {[%clk 0:00:47]} 29. Rb1
{[%clk 0:00:14]} 29... Qe7 {[%clk 0:00:43]} 0-1

[Event "*** Titled Tuesday Blitz"]
[Site "Chess.com"]
[Date "2021.03.30"]
[Round "1"]
[White "rugbyclub"]
[Black "valeriocarnicelli"]
[Result "0-1"]
[WhiteElo "2275"]
[BlackElo "2576"]
[TimeControl "180+1"]
[EndTime "10:06:32 PDT"]
[Termination "valeriocarnicelli won by resignation"]

1. e4 {[%clk 0:02:55.1]} 1... b6 {[%clk 0:03:00.2]} 2. d4 {[%clk 0:02:53.3]}
2... Bb7 {[%clk 0:03:00.7]} 3. Nd2 {[%clk 0:02:53.8]} 3... e6 {[%clk 0:03:01.2]}
4. Ngf3 {[%clk 0:02:53.4]} 4... d5 {[%clk 0:03:01.4]} 5. Bd3 {[%clk 0:02:45.5]}
5... c5 {[%clk 0:02:56.5]} 6. c3 {[%clk 0:02:43.6]} 6... Nc6 {[%clk 0:02:55.5]}
7. O-O {[%clk 0:02:41.4]} 7... Nf6 {[%clk 0:02:54.3]} 8. e5 {[%clk 0:02:40.5]}
8... Nd7 {[%clk 0:02:54.5]} 9. a3 {[%clk 0:02:40.1]} 9... Be7 {[%clk 0:02:48.2]}
10. Re1 {[%clk 0:02:36.2]} 10... Qc7 {[%clk 0:02:47.8]} 11. b4 {[%clk
0:02:33.1]} 11... O-O-O {[%clk 0:02:44.9]} 12. bxc5 {[%clk 0:02:29.7]} 12...
bxc5 {[%clk 0:02:44.9]} 13. c4 {[%clk 0:02:22.7]} 13... Nxd4 {[%clk 0:02:42.9]}
14. Nxd4 {[%clk 0:02:15.2]} 14... cxd4 {[%clk 0:02:43.8]} 15. Bb2 {[%clk
0:02:11.6]} 15... Nxe5 {[%clk 0:02:41.7]} 16. Bf1 {[%clk 0:01:56.1]} 16... dxc4
{[%clk 0:02:42]} 17. Nxc4 {[%clk 0:01:50.5]} 17... Nxc4 {[%clk 0:02:41.5]} 18.
Bxc4 {[%clk 0:01:50]} 18... Kb8 {[%clk 0:02:41]} 19. Qb3 {[%clk 0:01:38.6]}
19... Bf6 {[%clk 0:02:37.6]} 20. Rab1 {[%clk 0:01:27.3]} 20... Ka8 {[%clk
0:02:36.5]} 21. Rec1 {[%clk 0:01:24.9]} 21... Bg5 {[%clk 0:02:28]} 22. Rc2
{[%clk 0:01:14.7]} 22... Be4 {[%clk 0:01:46.1]} 23. Bd3 {[%clk 0:00:50.3]} 23...
Qb7 {[%clk 0:01:46.3]} 24. Bxd4 {[%clk 0:00:35.9]} 24... Rxd4 {[%clk 0:01:21]}
25. Bxe4 {[%clk 0:00:26.8]} 25... Qxe4 {[%clk 0:01:20.9]} 26. Rc7 {[%clk
0:00:26.5]} 26... Ra4 {[%clk 0:00:41.9]} 27. Rbc1 {[%clk 0:00:11.7]} 27... Bxc1
{[%clk 0:00:38.1]} 0-1

[Event "*** Titled Tuesday Blitz"]
[Site "Chess.com"]
[Date "2021.03.30"]
[Round "1"]
[White "Rital44"]
[Black "superchess02"]
[Result "0-1"]
[WhiteElo "2428"]
[BlackElo "2808"]
[TimeControl "180+1"]
[EndTime "10:06:34 PDT"]
[Termination "superchess02 won by resignation"]

1. e4 {[%clk 0:02:49.8]} 1... e5 {[%clk 0:02:59.5]} 2. Nf3 {[%clk 0:02:47.6]}
2... Nc6 {[%clk 0:02:59.5]} 3. Bc4 {[%clk 0:02:46.7]} 3... Bc5 {[%clk
0:02:58.7]} 4. O-O {[%clk 0:02:20.7]} 4... Nf6 {[%clk 0:02:56.9]} 5. d3 {[%clk
0:02:20.4]} 5... h6 {[%clk 0:02:55.8]} 6. c3 {[%clk 0:02:13.4]} 6... d6 {[%clk
0:02:47]} 7. a4 {[%clk 0:02:06.2]} 7... a5 {[%clk 0:02:46.1]} 8. Na3 {[%clk
0:02:04.1]} 8... O-O {[%clk 0:02:30.6]} 9. Nc2 {[%clk 0:02:02.1]} 9... Bb6
{[%clk 0:02:28.4]} 10. Be3 {[%clk 0:02:00.8]} 10... Bxe3 {[%clk 0:02:11.3]} 11.
Nxe3 {[%clk 0:02:01.7]} 11... Ne7 {[%clk 0:02:09.4]} 12. Re1 {[%clk 0:01:49.9]}
12... c6 {[%clk 0:02:08.9]} 13. Qc2 {[%clk 0:01:49.9]} 13... Ng6 {[%clk
0:02:05.8]} 14. Rad1 {[%clk 0:01:48.5]} 14... Re8 {[%clk 0:02:00.7]} 15. d4
{[%clk 0:01:47.5]} 15... exd4 {[%clk 0:01:56.9]} 16. Rxd4 {[%clk 0:01:22.7]}
16... c5 {[%clk 0:01:55.3]} 17. Rdd1 {[%clk 0:01:16.6]} 17... Nxe4 {[%clk
0:01:55.2]} 18. Nd2 {[%clk 0:00:37.4]} 18... Nxd2 {[%clk 0:01:46]} 19. Rxd2
{[%clk 0:00:37.4]} 19... Be6 {[%clk 0:01:32.2]} 20. Red1 {[%clk 0:00:36.7]}
20... Qg5 {[%clk 0:01:28]} 21. Bxe6 {[%clk 0:00:29.1]} 21... Rxe6 {[%clk
0:01:27.1]} 22. Rxd6 {[%clk 0:00:24]} 22... Rae8 {[%clk 0:01:23.6]} 23. Rxe6
{[%clk 0:00:19]} 23... Rxe6 {[%clk 0:01:24.5]} 24. g3 {[%clk 0:00:17.7]} 24...
Ne5 {[%clk 0:01:12.5]} 25. Rd5 {[%clk 0:00:17.9]} 25... Nf3+ {[%clk 0:01:03.1]}
26. Kf1 {[%clk 0:00:16]} 26... Qe7 {[%clk 0:00:56.3]} 27. h4 {[%clk 0:00:15.7]}
27... g6 {[%clk 0:00:55.5]} 28. Qe2 {[%clk 0:00:14.9]} 28... Ne5 {[%clk
0:00:53.5]} 29. Kg2 {[%clk 0:00:11.4]} 29... h5 {[%clk 0:00:53.1]} 30. Nc4
{[%clk 0:00:10.2]} 30... Ng4 {[%clk 0:00:51.2]} 31. Qf3 {[%clk 0:00:09.2]} 31...
Rf6 {[%clk 0:00:50.3]} 32. Qd3 {[%clk 0:00:03.9]} 32... Rxf2+ {[%clk 0:00:49.8]}
33. Kg1 {[%clk 0:00:03.8]} 33... Qe1+ {[%clk 0:00:49.2]} 0-1

[Event "*** Titled Tuesday Blitz"]
[Site "Chess.com"]
[Date "2021.03.30"]
[Round "1"]
[White "moro182"]
[Black "mapleaff"]
[Result "1-0"]
[WhiteElo "2721"]
[BlackElo "2391"]
[TimeControl "180+1"]
[EndTime "10:06:34 PDT"]
[Termination "moro182 won by resignation"]

1. d4 {[%clk 0:02:59.9]} 1... Nf6 {[%clk 0:02:58.2]} 2. c4 {[%clk 0:02:57.8]}
2... e6 {[%clk 0:02:50.9]} 3. Nc3 {[%clk 0:02:56.4]} 3... d5 {[%clk 0:02:49.9]}
4. cxd5 {[%clk 0:02:55.5]} 4... exd5 {[%clk 0:02:49.7]} 5. Bg5 {[%clk
0:02:54.7]} 5... c6 {[%clk 0:02:49.8]} 6. e3 {[%clk 0:02:53.7]} 6... Be7 {[%clk
0:02:47]} 7. Bd3 {[%clk 0:02:53.2]} 7... Nbd7 {[%clk 0:02:46.6]} 8. h3 {[%clk
0:02:52.5]} 8... g6 {[%clk 0:02:46.3]} 9. Nf3 {[%clk 0:02:49.9]} 9... Nf8 {[%clk
0:02:46.5]} 10. Bf4 {[%clk 0:02:49.5]} 10... Ne6 {[%clk 0:02:46.1]} 11. Be5
{[%clk 0:02:43.2]} 11... O-O {[%clk 0:02:45.4]} 12. Qc2 {[%clk 0:02:39.6]} 12...
Nd7 {[%clk 0:02:43.2]} 13. Bg3 {[%clk 0:02:37.8]} 13... Ng7 {[%clk 0:02:41.9]}
14. O-O-O {[%clk 0:02:26.3]} 14... b5 {[%clk 0:02:39.2]} 15. Kb1 {[%clk
0:02:25.4]} 15... a5 {[%clk 0:02:38.3]} 16. h4 {[%clk 0:02:20.9]} 16... Nf6
{[%clk 0:02:26.7]} 17. Be5 {[%clk 0:02:14]} 17... Bf5 {[%clk 0:02:09]} 18. Bxf5
{[%clk 0:02:12.2]} 18... Nxf5 {[%clk 0:02:09.3]} 19. h5 {[%clk 0:02:11.1]} 19...
a4 {[%clk 0:01:58.3]} 20. hxg6 {[%clk 0:02:09.3]} 20... fxg6 {[%clk 0:01:58.6]}
21. Ng5 {[%clk 0:02:04.1]} 21... b4 {[%clk 0:01:24.6]} 22. Nxa4 {[%clk
0:01:45.9]} 22... Qa5 {[%clk 0:01:23.4]} 23. b3 {[%clk 0:01:40]} 23... h5 {[%clk
0:00:51.2]} 24. Qxc6 {[%clk 0:01:15.7]} 24... Ra6 {[%clk 0:00:43.8]} 25. Qc2
{[%clk 0:01:06.6]} 25... Ng4 {[%clk 0:00:33.5]} 26. Nh3 {[%clk 0:00:57.2]} 26...
Nxe5 {[%clk 0:00:30.2]} 27. dxe5 {[%clk 0:00:56.4]} 27... Re6 {[%clk 0:00:25.1]}
28. Nf4 {[%clk 0:00:53.1]} 28... Rxe5 {[%clk 0:00:22.8]} 29. Nxg6 {[%clk
0:00:51.9]} 29... Bf6 {[%clk 0:00:22.3]} 30. Nxe5 {[%clk 0:00:42.2]} 30... Bxe5
{[%clk 0:00:22.1]} 31. Rxh5 {[%clk 0:00:42.2]} 31... Ng7 {[%clk 0:00:20.4]} 32.
Rxe5 {[%clk 0:00:41.2]} 1-0

[Event "*** Titled Tuesday Blitz"]
[Site "Chess.com"]
[Date "2021.03.30"]
[Round "1"]
[White "Szparu"]
[Black "monikarozman"]
[Result "1-0"]
[WhiteElo "2580"]
[BlackElo "2278"]
[TimeControl "180+1"]
[EndTime "10:06:35 PDT"]
[Termination "Szparu won by resignation"]

1. e4 {[%clk 0:02:58.3]} 1... c5 {[%clk 0:03:00.1]} 2. Nf3 {[%clk 0:02:55.3]}
2... Nc6 {[%clk 0:02:59.6]} 3. Bb5 {[%clk 0:02:54]} 3... g6 {[%clk 0:02:57.7]}
4. O-O {[%clk 0:02:51.5]} 4... Bg7 {[%clk 0:02:57.3]} 5. c3 {[%clk 0:02:47.9]}
5... Nf6 {[%clk 0:02:52.3]} 6. Re1 {[%clk 0:02:46.8]} 6... O-O {[%clk
0:02:48.1]} 7. h3 {[%clk 0:02:41.2]} 7... e5 {[%clk 0:02:37.9]} 8. d3 {[%clk
0:02:25.1]} 8... Re8 {[%clk 0:02:06.6]} 9. Nbd2 {[%clk 0:02:21.1]} 9... a6
{[%clk 0:02:03.2]} 10. Ba4 {[%clk 0:02:16.7]} 10... b5 {[%clk 0:02:02.2]} 11.
Bb3 {[%clk 0:02:15.5]} 11... d6 {[%clk 0:01:47.5]} 12. Nf1 {[%clk 0:02:14.5]}
12... Be6 {[%clk 0:01:47.3]} 13. Bc2 {[%clk 0:02:01.5]} 13... d5 {[%clk
0:01:43.5]} 14. Qe2 {[%clk 0:01:49.9]} 14... Qd6 {[%clk 0:01:36.9]} 15. Ng3
{[%clk 0:01:47.8]} 15... Rad8 {[%clk 0:01:29.3]} 16. Bg5 {[%clk 0:01:41.5]}
16... h6 {[%clk 0:01:25.4]} 17. Be3 {[%clk 0:01:36.6]} 17... d4 {[%clk
0:01:20.3]} 18. Bd2 {[%clk 0:01:33.1]} 18... c4 {[%clk 0:01:04]} 19. Red1 {[%clk
0:01:12.7]} 19... b4 {[%clk 0:00:51.4]} 20. Be1 {[%clk 0:01:04.8]} 20... Nd7
{[%clk 0:00:44.1]} 21. dxc4 {[%clk 0:01:01.5]} 21... bxc3 {[%clk 0:00:41.5]} 22.
bxc3 {[%clk 0:01:01.5]} 22... Qc5 {[%clk 0:00:41.5]} 23. cxd4 {[%clk 0:01:00]}
23... exd4 {[%clk 0:00:40.1]} 24. Bd3 {[%clk 0:00:58.9]} 24... Nb6 {[%clk
0:00:39.7]} 25. Rdc1 {[%clk 0:00:58.3]} 25... Nb4 {[%clk 0:00:24.8]} 26. Nd2
{[%clk 0:00:46]} 26... Nxd3 {[%clk 0:00:20.2]} 27. Qxd3 {[%clk 0:00:46.9]} 27...
Rc8 {[%clk 0:00:20.5]} 28. Nb3 {[%clk 0:00:46.3]} 28... Qc7 {[%clk 0:00:16.3]}
29. Ba5 {[%clk 0:00:45.8]} 29... Red8 {[%clk 0:00:15.5]} 30. c5 {[%clk
0:00:44.7]} 30... Bxb3 {[%clk 0:00:14.9]} 31. axb3 {[%clk 0:00:43.3]} 1-0